Cogmind - Beta 11.1 @@@ ROGUE MODE // 2022.09.20 @ 20:07:00 Player: DuckBoy Result: Destroyed by Y-54 Guardian with Gatling Laser Performance ------------- Evolutions (3) 1500 Regions Visited (7) 1400 Robots Destroyed (96) 480 Value Destroyed (2721) 2721 Prototype IDs (1) 20 Alien Tech Used (0) 0 Bonus (1009) 1009 TOTAL SCORE: 7130 Bonus ------- High Alert Combat Kills 309 Entered Garrisons 200 Used RIF Installer 500 Cogmind --------- Core Integrity 0/700 Matter 286/300 Energy 100/100 System Corruption 6% Temperature Cool (6) Movement Core (400) Ox7 Location -7/Factory Parts ------- > --- POWER (1) -------- (None) > --- PROPULSION (3) --- Titanium Leg > --- UTILITY (7) ------ Large Storage Unit Improved Signal Interpreter Advanced Terrain Scan Processor Armor Integrity Analyzer Transmission Jammer Relay Coupler [NC] (21) > --- WEAPON (2) ------- Makeshift Axe > --- INVENTORY (15) --- Flight Unit VTOL Module VTOL Module Seismic Detector Reaction Control System Relay Coupler [Sentry] (17) Relay Coupler [Hunter] (17) Lightning Gun Gauss Rifle Gauss Rifle Gauss Rifle Remote Datajack Power Maul Power Maul Peak State ------------ > --- POWER ------------ Light Ion Engine > --- PROPULSION ------- Titanium Leg Titanium Leg Titanium Leg > --- UTILITY ---------- Large Storage Unit Improved Signal Interpreter Advanced Terrain Scan Processor Armor Integrity Analyzer Transmission Jammer Improved Light Armor Plating Relay Coupler [NC] > --- WEAPON ----------- Heavy Flail Makeshift Axe > --- INVENTORY -------- Gravmag System Flight Unit VTOL Module VTOL Module Seismic Detector Reaction Control System Relay Coupler [Sentry] Relay Coupler [Hunter] Lightning Gun Gauss Rifle Gauss Rifle Gauss Rifle Remote Datajack Power Maul Power Maul [Rating: 42] Favorites ----------- Power Light Ion Engine Engine Light Ion Engine Power Core Light Nuclear Core Propulsion Light Treads Treads Light Treads Leg Titanium Leg Wheel Compact Wheel Hover Unit Gravmag System Flight Unit Flight Unit Utility Large Storage Unit Device Improved Terrain Scanner Storage Large Storage Unit Processor Armor Integrity Analyzer Hackware Relay Coupler [NC] Protection Hardened Medium Armor Plating Weapon Assault Rifle Energy Gun EM Pulse Gun Ballistic Gun Assault Rifle Launcher Mini Grenade Launcher Special Weapon Mining Laser Impact Weapon Heavy Flail Slashing Weapon Makeshift Axe Build | -11 -10 -10 -10 -9 -8 -8 -7 ------- Run | Scr Mat Min Exi Min Mat Gar Fac Slots Evolved 6 | . . . . . 4 . 2 Power . | . . . . . . . . Propulsion 1 | . . . . . 1 . . Utility 5 | . . . . . 3 . 2 Weapon . | . . . . . . . . Parts Attached 96 | 5 14 7 5 4 7 21 33 Power 12 | 1 1 2 1 . . 2 5 Engine 9 | 1 1 2 1 . . 1 3 Core 3 | . . . . . . 1 2 Reactor . | . . . . . . . . Propulsion 33 | . 7 . . 1 3 10 12 Treads 12 | . 3 . . 1 3 3 2 Leg 7 | . . . . . . 4 3 Wheel 5 | . 2 . . . . . 3 Hover 2 | . . . . . . . 2 Flight 7 | . 2 . . . . 3 2 Utility 26 | 2 2 2 1 1 2 5 11 Device 9 | 1 1 1 . . . . 6 Storage 4 | 1 1 . 1 . . . 1 Processor 3 | . . . . . . 1 2 Hackware 4 | . . . . . . 3 1 Protection 6 | . . 1 . 1 2 1 1 Artifact . | . . . . . . . . Weapon 25 | 2 4 3 3 2 2 4 5 Energy Gun 2 | 1 1 . . . . . . Energy Cannon . | . . . . . . . . Ballistic Gun 11 | 1 2 2 1 1 2 2 . Ballistic Cannon . | . . . . . . . . Launcher 2 | . . . . 1 . 1 . Special Weapon 3 | . 1 1 . . . . 1 Impact Weapon 1 | . . . . . . . 1 Slashing Weapon 6 | . . . 2 . . 1 3 Piercing Weapon . | . . . . . . . . Special Melee Weapon . | . . . . . . . . Unidentified Prototypes 1 | . . . 1 . . . . Parts Lost 43 | . 3 1 . . 4 11 24 Power 8 | . 1 1 . . 1 1 4 Propulsion 15 | . . . . . 2 5 8 Utility 14 | . 1 . . . 1 3 9 Weapon 6 | . 1 . . . . 2 3 Highest Loss Streak 6 | . 2 1 . . 2 6 6 To Critical Strikes 1 | . 1 . . . . . . Average Slot Usage (%) 86 | . 85 95 95 85 76 79 81 Engine 9 | . 13 13 14 14 9 1 3 Treads 16 | . 15 28 28 28 26 19 . Leg 3 | . . . . . . 2 10 Wheel 2 | . 2 . . . . . 6 Device 7 | . 10 6 . . . . 14 Storage 11 | . 14 14 14 14 9 9 7 Processor 3 | . . . . . . 2 12 Hackware 3 | . . . . . . 14 5 Protection 6 | . . 3 14 14 21 6 1 Energy Gun 1 | . 7 . . . . . . Ballistic Gun 12 | . 19 27 12 13 10 11 1 Slashing Weapon 4 | . . . 10 . . 4 7 Naked Turns . | . . . . . . . . Heaviest Build 49 | 13 28 35 42 42 49 36 47 Greatest Support 60 | 3 40 40 40 40 60 60 51 Greatest Overweight (x) 9 | 4 9 . 1 1 1 7 9 Average Overweight (x) . | 3 1 . . . . . . Largest Inventory Capacity 15 | 8 15 15 15 15 15 15 15 Average Capacity 14 | 7 14 15 15 15 15 15 15 Most Carried 15 | 3 13 15 15 15 12 15 15 Average Carried 12 | 1 8 13 14 14 9 12 14 Final Capacity 15 | 8 15 15 15 15 15 15 15 Final Carried 15 | 3 12 14 15 13 10 14 14 Class Distribution -------------------- 88% | Mutant 11% | Scavenger-Mutant Dominant Class ---------------- Mutant | -10/Materials Mutant | -10/Mines Mutant | -10/Exiles Mutant | -9/Mines Mutant | -8/Materials Mutant | -8/Garrison Mutant | -7/Factory Resources | -11 -10 -10 -10 -9 -8 -8 -7 ----------- Run | Scr Mat Min Exi Min Mat Gar Fac Matter Collected 1686 | 289 277 222 48 83 91 240 436 Remotely . | . . . . . . . . Salvage Created 3332 | 88 477 197 110 104 1094 305 957 Parts 201 | 11 25 16 4 5 67 30 43 Haulers Intercepted 1 | . 1 . . . . . . Recyclers Shooed 1 | . . . . . 1 . . Parts Field Recycled . | . . . . . . . . Retrieved Matter . | . . . . . . . . Parts Self-Destructed . | . . . . . . . . Prevented . | . . . . . . . . Kills | -11 -10 -10 -10 -9 -8 -8 -7 ------- Run | Scr Mat Min Exi Min Mat Gar Fac Combat Hostiles Destroyed 84 | . 7 9 1 9 22 18 18 Melee 20 | . . . 1 . . 6 13 Guns 49 | . 7 9 . 2 22 5 4 AOE 14 | . . . . 7 . 7 . Classes Destroyed 16 | 1 5 1 1 . 3 3 2 Worker 2 | . . . . . . . 2 Builder 3 | . . . . . 3 . . Tunneler 5 | 4 . . . . . . 1 Hauler 1 | . 1 . . . . . . Recycler 6 | . 2 . . . . . 4 Watcher 3 | . 2 . . . 1 . . Swarmer 39 | . 3 6 . . 3 14 13 Cutter 1 | . . . . . . 1 . Grunt 20 | . 4 2 . 2 12 . . Brawler 1 | . . . . . 1 . . Duelist 2 | . . . . . . 2 . Sentry 6 | . . . . . 5 . 1 Specialist 1 | . . . . . . 1 . Hunter 2 | . . . 1 . 1 . . Programmer 4 | . . . . . . . 4 Assembled 8 | . . 1 . 7 . . . Best Kill Streak 18 | 2 3 3 1 7 18 8 4 Combat Bots Only 16 | . 3 3 1 7 16 8 4 Max Kills in Single Turn 3 | 1 1 2 1 2 2 3 1 Gunslinging 1 | . . 1 . . . 1 . Exploded 3 | . . . . 2 . 3 . Melee 1 | . . . 1 . . 1 1 Uniques/NPCs Destroyed . | . . . . . . . . Combat | -11 -10 -10 -10 -9 -8 -8 -7 -------- Run | Scr Mat Min Exi Min Mat Gar Fac Damage Taken 5786 | . 515 526 . 266 736 1144 2599 Core 1086 | . 63 65 . 23 83 146 706 Absorbed by Shields . | . . . . . . . . Core Remaining (%) 65 | 100 . . . 39 . 58 . Volleys Fired 130 | 13 45 29 . 5 4 15 19 Largest 2 | 2 2 2 . 1 2 2 2 Hottest 100 | 60 100 100 . 30 40 50 48 Shots Fired 332 | 15 76 53 . 19 112 29 28 Gun 311 | 15 74 48 . 14 112 23 25 Cannon . | . . . . . . . . Launcher 11 | . . . . 5 . 6 . Special 10 | . 2 5 . . . . 3 Kinetic 287 | 13 52 48 . 14 112 23 25 Thermal 29 | . 24 5 . . . . . Explosive 11 | . . . . 5 . 6 . Electromagnetic 2 | 2 . . . . . . . Robot Hit Streak 22 | 10 13 5 . 12 22 6 6 Robot Miss Streak 3 | 1 3 3 . 2 3 2 3 Penetration Max . | . . . . . . . . Secondary Targets 6 | . . 4 . . . 1 1 Max Gunslinging Chain 1 | . . 1 . . . 1 1 Autonomous 119 | . . . . 14 105 . . Shots Hit Robots 284 | 13 49 24 2 14 86 27 69 Core Hits 133 | 4 20 11 1 12 37 25 23 Critical Kills 1 | . . . . . . . 1 Critical Parts Destroyed 1 | . . . . . . . 1 Critical Strikes 11 | . . . . . . 2 9 Destroy 1 | . . . . . . . 1 Smash 1 | . . . . . . . 1 Sever 9 | . . . . . . 2 7 Melee Attacks 119 | . . . 2 . . 23 94 Impact 15 | . . . . . . . 15 Slashing 104 | . . . 2 . . 23 79 Piercing . | . . . . . . . . Sneak Attacks 8 | . . . 1 . . . 7 Combat Hostiles 1 | . . . 1 . . . . Follow-up Attacks 9 | . . . . . . . 9 Damage Inflicted 8587 | 171 637 327 160 828 2835 1115 2514 Guns 4585 | 171 636 327 . 273 2827 173 178 Cannons . | . . . . . . . . Explosions 931 | . . . . 548 . 383 . Melee 3055 | . . . 160 . . 559 2336 Ramming 16 | . 1 . . 7 8 . . Kinetic 4366 | 159 429 327 . 273 2827 173 178 Thermal 207 | . 207 . . . . . . Explosive 931 | . . . . 548 . 383 . Electromagnetic 12 | 12 . . . . . . . Impact 389 | . . . . . . . 389 Slashing 2666 | . . . 160 . . 559 1947 Piercing . | . . . . . . . . Highest Corruption 6 | . . 1 1 1 . . 6 Average Corruption 1 | . . 1 1 1 . . 2 Corruption Purged . | . . . . . . . . Corruption Blocked . | . . . . . . . . Effects 34 | . . 2 2 2 . . 28 Message Errors 9 | . . . . 1 . . 8 Matter Fused 11 | . . 2 . 1 . . 8 Heat Flow Errors 5 | . . . 1 . . . 4 Energy Discharges 3 | . . . . . . . 3 Data Loss (minor) 3 | . . . 1 . . . 2 Data Loss (major) 1 | . . . . . . . 1 Misfires 1 | . . . . . . . 1 Alerts 1 | . . . . . . . 1 Overload Shots . | . . . . . . . . Overflow Damage 520 | . . . 39 46 . 75 360 Projectiles . | . . . . . . . . Explosions 67 | . . . . 46 . 21 . Melee 453 | . . . 39 . . 54 360 Knockbacks 3 | . . . . . . . 3 Impact 3 | . . . . . . . 3 Kinetic . | . . . . . . . . Secondary . | . . . . . . . . Self-Inflicted Damage 146 | . . . . 45 . 101 . Shots 6 | . . . . 2 . 4 . Rammed 6 | . 2 . . 1 3 . . Targets Rammed 6 | . 2 . . 1 3 . . Kicked . | . . . . . . . . Crushed . | . . . . . . . . Highest Temperature 255 | 20 63 131 145 60 19 . 255 Average Temperature 48 | 20 24 52 75 36 5 . 114 Received Heat Transfer 919 | . 165 66 . 109 243 54 282 Siege Activations . | . . . . . . . . Robots Corrupted . | . . . . . . . . Combat Hostiles . | . . . . . . . . Parts Fried 2 | . . . . . . . 2 Impact Corruptions 6 | . . . . . . . 6 Robots Melted . | . . . . . . . . Combat Hostiles . | . . . . . . . . Parts Melted . | . . . . . . . . Heat Transferred 475 | . 475 . . . . . . Parts Sabotaged . | . . . . . . . . Parts Stolen . | . . . . . . . . Parts Stripped . | . . . . . . . . Power Chain Reactions . | . . . . . . . . Missiles Intercepted . | . . . . . . . . Alert | -11 -10 -10 -10 -9 -8 -8 -7 ------- Run | Scr Mat Min Exi Min Mat Gar Fac Peak Influence 873 | 20 159 157 . 152 741 873 577 Initial 468 | . 13 27 . . 59 468 457 Average 262 | 12 48 48 . 34 427 737 367 Maximum Alert Level 3 | . . . . . 3 3 2 Low Security (%) 49 | 100 100 100 . 100 31 . . Level 1 24 | . . . . . 10 . 70 Level 2 17 | . . . . . 30 43 29 Level 3 8 | . . . . . 27 56 . Level 4 . | . . . . . . . . Level 5 . | . . . . . . . . High Security . | . . . . . . . . Max Security . | . . . . . . . . Squads Dispatched 10 | . . . . . 6 . 4 Investigation 1 | . . . . . 1 . . Extermination 3 | . . . . . . . 3 Reinforcement 3 | . . . . . 2 . 1 Assault . | . . . . . . . . Garrison 3 | . . . . . 3 . . Intercept . | . . . . . . . . Searches Triggered . | . . . . . . . . Construction Impeded 1 | . . . . . 1 . . Haulers Reinforced . | . . . . . . . . Active Scanning Responses . | . . . . . . . . Cargo Convoy Interrupts . | . . . . . . . . Stealth | -11 -10 -10 -10 -9 -8 -8 -7 --------- Run | Scr Mat Min Exi Min Mat Gar Fac Distress Signals 2 | . . . . 1 1 . . Communications Jammed . | . . . . . . . . Distress Signals . | . . . . . . . . Times Spotted 105 | . 9 9 . 9 24 20 34 Peak Tracking Total 12 | . 3 3 . 12 10 8 7 Tactical Retreats 6 | . . . . 1 . 2 3 Traps | -11 -10 -10 -10 -9 -8 -8 -7 ------- Run | Scr Mat Min Exi Min Mat Gar Fac Traps Triggered 7 | . . 2 . . . 4 1 Indirectly . | . . . . . . . . Trap Hack Attempts . | . . . . . . . . Triggered . | . . . . . . . . Disarmed . | . . . . . . . . Reprogrammed . | . . . . . . . . Reused . | . . . . . . . . Traps Extracted . | . . . . . . . . Installed . | . . . . . . . . Triggered . | . . . . . . . . Machines | -11 -10 -10 -10 -9 -8 -8 -7 ---------- Run | Scr Mat Min Exi Min Mat Gar Fac Machines Disabled 7 | . . . . . 5 1 1 Max in Single Turn 1 | . . . . . 1 1 1 Garrison Relay 2 | . . . . . . 2 . Machines Sabotaged . | . . . . . . . . Garrisons Compromised . | . . . . . . . . Overloaded Fab Kills . | . . . . . . . . Hacking | -11 -10 -10 -10 -9 -8 -8 -7 --------- Run | Scr Mat Min Exi Min Mat Gar Fac Machines Accessed 15 | . 4 2 1 . 3 . 5 Terminals 11 | . 4 1 . . 2 . 4 Fabricators . | . . . . . . . . Repair Stations . | . . . . . . . . Recycling Units 1 | . . . . . . . 1 Scanalyzers . | . . . . . . . . Garrison Access 1 | . . . . . 1 . . Total Hacks 45 | . 9 3 4 . 8 . 21 Successful 27 | . 7 2 4 . 3 . 11 Failed 17 | . 2 1 . . 4 . 10 Catastrophic 1 | . 1 . . . . . . Database Lockouts 1 | . . . . . 1 . . Manual 38 | . 9 . 1 . 7 . 21 Terminals 35 | . 9 2 . . 7 . 17 Fabricators . | . . . . . . . . Repair Stations . | . . . . . . . . Recycling Units 4 | . . . . . . . 4 Scanalyzers . | . . . . . . . . Garrison Access 1 | . . . . . 1 . . Terminal Hacks 12 | . 3 2 4 . 1 . 2 Record 4 | . . . 4 . . . . Part Schematic 2 | . 1 . . . 1 . . Open Door 1 | . . 1 . . . . . Branch Access Points 1 | . 1 . . . . . . Terminal Index 2 | . 1 . . . . . 1 Fabricator Index 1 | . . . . . . . 1 Zone Layout 1 | . . 1 . . . . . Fabricator Hacks . | . . . . . . . . Repair Station Hacks . | . . . . . . . . Recycling Unit Hacks . | . . . . . . . . Scanalyzer . | . . . . . . . . Garrison Access Hacks 1 | . . . . . 1 . . Unlock Access 1 | . . . . . 1 . . Unauthorized Hacks 14 | . 4 . . . 1 . 9 Terminals 11 | . 4 . . . 1 . 6 Assimilate 2 | . . . . . . . 2 Botnet 7 | . 3 . . . 1 . 3 Operators 2 | . 1 . . . . . 1 Fabricators . | . . . . . . . . Repair Stations . | . . . . . . . . Recycling Units 3 | . . . . . . . 3 Reject 1 | . . . . . . . 1 Recyclers 1 | . . . . . . . 1 Mask 1 | . . . . . . . 1 Scanalyzers . | . . . . . . . . Garrison Access . | . . . . . . . . Data Cores Recovered . | . . . . . . . . Used . | . . . . . . . . Hacking Detections 8 | . 2 . . . 2 . 4 Full Trace Events 1 | . . . . . 1 . . Feedback Events . | . . . . . . . . Feedback Blocked . | . . . . . . . . Robot Schematics Acquired . | . . . . . . . . Robots Built . | . . . . . . . . Authchips . | . . . . . . . . Time . | . . . . . . . . Total Robot Build Rating . | . . . . . . . . Part Schematics Acquired 2 | . 1 . . . 1 . . Parts Built . | . . . . . . . . Authchips . | . . . . . . . . Time . | . . . . . . . . Total Part Build Rating . | . . . . . . . . Parts Repaired . | . . . . . . . . Time . | . . . . . . . . Parts Recycled . | . . . . . . . . Recycled Matter . | . . . . . . . . Retrieved Matter . | . . . . . . . . Retrieved Components . | . . . . . . . . Parts Scanalyzed . | . . . . . . . . Part Schematics Acquired . | . . . . . . . . Parts Damaged . | . . . . . . . . Bothacking | -11 -10 -10 -10 -9 -8 -8 -7 ------------ Run | Scr Mat Min Exi Min Mat Gar Fac Used RIF Installer 1 | . . . . . . 1 . Robots Hacked 1 | . . . . . . . 1 Non-combat 1 | . . . . . . . 1 Combat . | . . . . . . . . Robot Hacks Applied 3 | . . . . . . . 3 parse_system 2 | . . . . . . . 2 formatsys_low 1 | . . . . . . . 1 Relay Couplers Released 8 | . . . . . . 8 . Machine Destruction 8 | . . . . . . 8 . Attached 4 | . . . . . . 3 1 Fabnet Peak Effective % . | . . . . . . . . Robots Rewired 3 | . . . 3 . . . . Allies Hacked . | . . . . . . . . Hacks Repelled . | . . . . . . . . Allies | -11 -10 -10 -10 -9 -8 -8 -7 -------- Run | Scr Mat Min Exi Min Mat Gar Fac Total Allies 5 | . . . 3 . . . 2 Largest Group 3 | . . . 3 3 . . 2 Highest-Rated Group 37 | . . . 37 37 . . 32 Highest-Rated Ally 22 | . . . 21 21 . . 22 Total Orders 4 | . . . . . . . 4 STAY 2 | . . . . . . . 2 FOLLOW 1 | . . . . . . . 1 AID 1 | . . . . . . . 1 Ally Attacks 7 | . . . . 7 . . . Total Damage 182 | . . . . 182 . . . Kills . | . . . . . . . . Allies Corrupted . | . . . . . . . . Allies Melted . | . . . . . . . . Intel | -11 -10 -10 -10 -9 -8 -8 -7 ------- Run | Scr Mat Min Exi Min Mat Gar Fac Robot Analysis Total . | . . . . . . . . Derelict Logs Recovered 1 | . . 1 . . . . . Drone Launches . | . . . . . . . . Drone Recoveries . | . . . . . . . . Exploration | -11 -10 -10 -10 -9 -8 -8 -7 ------------- Run | Scr Mat Min Exi Min Mat Gar Fac Turns Passed 5803 | 218 790 989 928 318 293 593 1674 Spaces Moved 2934 | 81 331 546 496 144 154 254 928 Core 140 | 81 56 . . . . . 3 Treads 1777 | . 216 546 496 144 154 205 16 Legs 517 | . . . . . . 28 489 Wheels 421 | . 52 . . . . . 369 Hover 50 | . . . . . . . 50 Flight 29 | . 7 . . . . 21 1 Fastest Speed 50 | 50 100 160 160 160 160 120 93 Average Speed 162 | 216 187 160 177 205 163 170 134 Slowest Speed 600 | 250 500 160 240 240 240 600 500 Overloaded Moves . | . . . . . . . . Propulsion Burnouts . | . . . . . . . . Robots Hopped . | . . . . . . . . Cave-ins Triggered . | . . . . . . . . Exploration Rate (%) 45 | 5 55 93 91 36 12 45 27 Regions Visited 7 Branch Regions 3 Pre-discovered Areas 2 | . . 1 1 . . . . Known Exits Taken 2 | . 1 . . . 1 . . Unknown Exits Taken 4 | 1 . 1 1 1 . . . Scrap Searched 1 | . . 1 . . . . . Spaces Dug 18 | . 2 . . . . 8 8 Terrain Destroyed 138 | . 2 . . 48 23 57 8 Melee 8 | . . . . . . . 8 Projectile 33 | . 2 . . 8 23 . . AOE 97 | . . . . 40 . 57 . Terrain Rammed . | . . . . . . . . Walls Destroyed . | . . . . . . . . Machines Disabled . | . . . . . . . . Actions | -11 -10 -10 -10 -9 -8 -8 -7 --------- Run | Scr Mat Min Exi Min Mat Gar Fac Total 3596 | 107 415 599 543 163 185 344 1240 Wait 196 | 6 12 9 3 1 14 1 150 Move 2926 | 80 330 545 495 143 153 252 928 Hop . | . . . . . . . . Pick Up 50 | 3 7 5 3 3 3 16 10 Fast Attach 55 | 5 9 1 3 . 1 9 27 Attach 23 | . . 1 . 3 6 8 5 Detach 2 | . . . . 1 . . 1 Swap 18 | . 5 5 2 1 . 4 1 Drop 45 | . 5 4 8 5 1 6 16 Fire 130 | 13 45 29 . 5 4 15 19 Melee 108 | . . . 2 . . 23 83 Ram . | . . . . . . . . Kick . | . . . . . . . . Crush 6 | . 2 . . 1 3 . . Escape Stasis 10 | . . . . . . 10 . Rewire 27 | . . . 27 . . . . Trap . | . . . . . . . . Miscellaneous . | . . . . . . . . Route ------- -11/Scrapyard -10/Materials (discovered 3 exits: [*Mat] / *Min x2) -10/Mines (discovered 3 exits: [*Mat x2] / *Exi) -10/Exiles (discovered 2 exits: [*Min x2]) -9/Mines -8/Materials -8/Garrison -7/Factory (discovered 2 exits: [*Fac] / [*Low]) History --------- Turn | Location | Event 12 | -11/Scrapyard | Discovered new exit (range 16) 219 | -11/Scrapyard | Entered Materials 315 | -10/Materials | Build established: Mutant 513 | -10/Materials | Identified exit to Mines 759 | -10/Materials | Discovered new exit (range 9) 1009 | -10/Materials | Entered Mines 1212 | -10/Mines | Learned location of Storage (-9) 1332 | -10/Mines | Met a Derelict who couldn't figure out how to use a Trap Extractor 1450 | -10/Mines | Discovered new exit (range 10) 1521 | -10/Mines | Learned Materials stockpile data 1620 | -10/Mines | Deemed a non-threat by the Exiles lab entrance 1622 | -10/Mines | Discovered new exit (range 5) 1652 | -10/Mines | Discovered new exit (range 5) 1780 | -10/Mines | Excavation squad dispatched 1780 | -10/Mines | A large section of the Mines collapsed 1828 | -10/Mines | Core integrity fell below 50% 1998 | -10/Mines | Entered Exiles 1998 | -10/Exiles | Found Exiles lab destroyed 2024 | -10/Exiles | Discovered new exit (range 14) 2491 | -10/Exiles | Learned location of Zion (-7) 2649 | -10/Exiles | Opened EX-Vault 2657 | -10/Exiles | Found Prototype Ballistic Gun 2657 | -10/Exiles | Identified AWS/Gauss 2889 | -10/Exiles | Discovered new exit (range 14) 2926 | -10/Exiles | Entered Mines 2926 | -9/Mines | Accompanied by 3 allies 3106 | -9/Mines | Assembled infested the area 3175 | -9/Mines | Destroyed 7 combat bots 3231 | -9/Mines | Discovered new exit (range 9) 3244 | -9/Mines | Entered Materials 3244 | -8/Materials | Evolved 4 slots: Propulsion x1, Utility x3 3314 | -8/Materials | Garrison activated, responded to threat 3402 | -8/Materials | Destroyed 16 combat bots 3443 | -8/Materials | Central database locked down 3535 | -8/Materials | Identified exit to Garrison 3537 | -8/Materials | Entered Garrison 3545 | -8/Garrison | Installed Relay Interface Framework 3639 | -8/Garrison | Destroyed 8 combat bots 3782 | -8/Garrison | Triggered checkpoint 3793 | -8/Garrison | Garrison Relay disabled 3858 | -8/Garrison | Triggered checkpoint 3937 | -8/Garrison | Discovered new exit (range 8) 3946 | -8/Garrison | Triggered checkpoint 3962 | -8/Garrison | Garrison Relay disabled 4022 | -8/Garrison | Lost 6 parts (1p3n1u1w) 4130 | -8/Garrison | Entered Factory 4130 | -7/Factory | Evolved 2 slots: Utility x2 4257 | -7/Factory | Lost 4 parts (3u1w) 4300 | -7/Factory | Build established: Scavenger-Mutant 4537 | -7/Factory | Lost 6 parts (1p2n2u1w) 4667 | -7/Factory | Discovered new exit (range 7) 4716 | -7/Factory | Discovered new exit (range 15) 4774 | -7/Factory | Build established: Mutant 5187 | -7/Factory | Core integrity fell below 50% 5226 | -7/Factory | Lost 6 parts (1p3n2u) 5583 | -7/Factory | Core integrity fell below 20% 5804 | -7/Factory | Destroyed by Y-54 Guardian with Gatling Laser Last Messages --------------- 05684_ Dropped Lrg. Storage Unit. 05692_ System corrupted: Matter fused (-6). 05701_ U-05 Engineer builds a Wall. 05703_ Slug penetrates Wall. 05708_ R-06 Scavenger collects Lrg. Storage Unit. 05713_ O-24 Administrator: "IFF HANDSHAKE FAILED. SECURING TERMINAL." 05718_ System corrupted: Heat flow error (+236). 05718_ ALERT: Hostiles spotted, dispatching reinforcements to Terminal F016. 05738_ System corrupted: Matter fused (-8). 05741_ Slug penetrates Wall. 05746_ K-01 Serf cleans the Subcomponent Replicator. 05751_ Titanium Leg destroyed. 05775_ UMJZH4 LK G ZM LB:FX7U 05796_ The unstable cave ceiling collapses. 05798_ System corrupted: Substantial component data lost. 05800_ Lgt. Ion Engine destroyed. 05802_ U-05 Engineer builds a Wall. 05802_ Penetrated by Slug. 05802_ Gravmag System destroyed. Map ----- +----------------------------------------------------+ | #????# # "" +?????????????? | | """ #????#########" "" #?????????????? | | """ ==#????????????## ##?????????????? | | """!|%#?????????????# #??????????????? | | r [!############### #??????????????? | | """ + + # #??????????????? | | """ ######## %# #??????????????? | | """ #??????# +% !!= #??????????????? | | #??????# # [[ !== #??????????????? | | #??????# %# [ != #??????????????? | | ########??????# # ####### #??????????????? | | ????????########+# #?????? #?????????????? | | ????????# T # # #??????? +?????????????? | | ????????# # #??????? #?????????????? | | " "?????????# = + #????????#?????????????? | | ????????????# ]! # #??????????????????????? | | ????????????# ]! # ###??????????????????????? | | ????????????# ! !?# #????????????????????????? | | ????????????######?# #????????????????????????? | | ?????????????####### #????????????????????????? | | ?????????????# #????????????????????????? | | ?????????????# ##### #????????????????????????? | | ?????????????# #???# #????????????????????????? | | ?????????????# #??## ##????##?????????????????? | | ?????????????# #?##u ###[ #?????????????????? | | ???????#######+##/#### @Y +?????????????????? | | ???????# ## !### ! #?????????????????? | | ????r??# ######???????????????????????? | | ???????# #????????????????????????????? | | ???????# #????????????????????????????? | | ???????# #????????????????????????????? | | ???????# #????????????????????????????? | | ???????+ #????????????????????????????? | | ???????# #????????????????????????????? | | ???????# #????????????????????????????? | | r??????# ! #????????????????????????????? | | ???????# #????????????????????????????? | | ???????# / [#????????????????????????????? | | ????????#############????????????????????????????? | | ?????????????????????????????????????????????????? | | ?????????????????????????????????????????????????? | | ?????????????????????????????????????????????????? | | ?????????????????????????????????????????????????? | | ?????????????????????????????????????????????????? | | ?????????????????????????????????????????????????? | | ?????????????????????????????????????????????????? | | ?????????????????????????????????????????????????? | | ?????????????????????????????????????????????????? | | ?????????????????????????????????????????????????? | | ?????????????????????????????????????????????????? | +----------------------------------------------------+ Best States ------------- Heat Dissipation 34 Energy Generation 15 Energy Capacity 170 Matter Stores 300 Matter Capacity 300 Sight Range 16 Robot Scan Range 14 Terrain Scan Range 16 Terrain Scan Density 210 ECM Strength 2 Jamming Range 12 Armor Coverage 525 Resistance: TH 10 Melee Speed Boost 20 Evasion (%) 55 Armor Integrity Analysis 30 Recoil Reduction 3 Relay Coupler Types 3 Relay Coupler Value 58 Trap Extractor Capacity 6 Item Schematics ----------------- Lrg. Storage Unit | -10/Materials | Hacked Hacking Suite | -8/Materials | Hacked Robot Schematics ------------------ None Fabricated ------------ Nothing Alien Tech Used ----------------- None Achievements -------------- None Challenges ------------ None Game ------ Seed RefineryCoilLog Manual? 0 Play Time 00:51:50 Cumulative 123.6 hours Start 2022.09.20 @ 19:17:52 End 2022.09.20 @ 20:07:00 Sessions 1 Manual Loads 0 Difficulty Rogue Special Mode None Game No. 96 Rogue 93 Adventurer 3 Explorer 0 Win Type - Total 1 Types 1/0/0/0/0/0/0/0/0 Lore% 53 Gallery% 51 Achievement% 46 Wizard Run 0 Options --------- ASCII 0 Keyboard 0 Movement Numpad Keybinds 0 Fullscreen 1 Font 18/SmallcapsGlow Map View 76x50 Tactical HUD 1 Map Filters NONE Filters NONE Steam 1 RUN: 90ffab49-6f4a-4476-b613-88348a077d81